fUSD/lending_fUSD_20250107
["ID","MTS","AMOUNT","RATE_DAILY","PERIOD"]
[348042078,1736273452411,-2211.29,0.00010413,2]
[348042079,1736273452421,-334.479534,0.00010413,2]
[348042080,1736273452430,-500.0,0.00010413,2]
[348042081,1736273452441,-500.0,0.00010413,2]
[348042082,1736273452451,-500.0,0.00010413,2]
[348042083,1736273452460,-2702.59,0.00010413,2]
[348042084,1736273452471,-660.43,0.00010413,2]
[348042085,1736273452482,-500.0,0.00010413,2]
[348042086,1736273452493,-500.0,0.00010413,2]
[348042087,1736273452503,-500.0,0.00010413,2]
[348042088,1736273452512,-549.72,0.00010413,2]
[348042089,1736273452522,-500.0,0.00010413,2]
[348042090,1736273452531,-500.0,0.00010413,2]
[348042091,1736273452541,-500.0,0.00010413,2]
[348042092,1736273452551,-500.0,0.00010413,2]
[348042093,1736273452560,-500.0,0.00010413,2]
[348042094,1736273452571,-806.56,0.00010413,2]
[348042095,1736273452581,-500.0,0.00010413,2]
[348042096,1736273452591,-521.17,0.00010413,2]
[348042097,1736273452602,-500.0,0.00010413,2]
[348042098,1736273452611,-500.0,0.00010413,2]
[348042099,1736273452621,-500.0,0.00010413,2]
[348042100,1736273452631,-500.0,0.00010413,2]
[348042101,1736273452641,-500.0,0.00010413,2]
[348042102,1736273452650,-500.0,0.00010413,2]
[348042103,1736273452660,-500.0,0.00010413,2]
[348042104,1736273452670,-500.0,0.00010413,2]
[348042105,1736273452679,-500.0,0.00010413,2]
[348042106,1736273452689,-500.0,0.00010413,2]
[348042107,1736273452698,-500.0,0.00010413,2]
[348042108,1736273452707,-500.0,0.00010413,2]
[348042109,1736273452768,-500.0,0.00010413,2]
[348042110,1736273452778,-500.0,0.00010413,2]
[348042111,1736273452788,-500.0,0.00010413,2]
[348042112,1736273452797,-500.0,0.00010413,2]
[348042113,1736273452806,-500.0,0.00010413,2]
[348042114,1736273452815,-500.0,0.00010413,2]
[348042115,1736273452825,-500.0,0.00010413,2]
[348042116,1736273452835,-500.0,0.00010413,2]
[348042117,1736273452844,-500.0,0.00010413,2]
[348042118,1736273452853,-500.0,0.00010413,2]
[348042119,1736273452862,-500.0,0.00010413,2]
[348042120,1736273452871,-500.0,0.00010413,2]
[348042121,1736273452880,-500.0,0.00010413,2]
[348042122,1736273452890,-500.0,0.00010413,2]
[348042123,1736273452899,-500.0,0.00010413,2]
[348042124,1736273452908,-500.0,0.00010413,2]
[348042125,1736273452917,-500.0,0.00010413,2]
[348042126,1736273452926,-500.0,0.00010413,2]
[348042127,1736273452935,-500.0,0.00010413,2]
[348042128,1736273452945,-894.83,0.00010413,2]
[348042129,1736273452954,-500.0,0.00010413,2]
[348042130,1736273452963,-500.0,0.00010413,2]
[348042131,1736273452972,-500.0,0.00010413,2]
[348042132,1736273452982,-500.0,0.00010413,2]
[348042133,1736273452991,-198.47,0.00010413,2]
[348042134,1736273452998,-500.0,0.00010413,2]
[348042135,1736273453007,-614.58,0.00010413,2]
[348042136,1736273453017,-958.69,0.00010413,2]
[348042137,1736273453027,-500.0,0.00010413,2]
[348042138,1736273453036,-500.0,0.00010413,2]
[348042139,1736273453045,-500.0,0.00010413,2]
[348042140,1736273453055,-500.0,0.00010413,2]
[348042141,1736273453064,-1016.91,0.00010413,2]
[348042142,1736273453074,-529.41,0.00010413,2]
[348042143,1736273453083,-599.33,0.00010413,2]
[348042144,1736273453093,-500.0,0.00010413,2]
[348042145,1736273453102,-241.58,0.00010413,2]
[348042146,1736273453111,-500.0,0.00010413,2]
[348042147,1736273453120,-500.0,0.00010413,2]
[348042148,1736273453131,-500.0,0.00010413,2]
[348042149,1736273453140,-500.0,0.00010413,2]
[348042150,1736273453149,-746.53,0.00010413,2]
[348042151,1736273453159,-500.0,0.00010413,2]
[348042152,1736273453168,-500.0,0.00010413,2]
[348042153,1736273453177,-500.0,0.00010413,2]
[348042154,1736273453186,-500.0,0.00010413,2]
[348042155,1736273453197,-500.0,0.00010413,2]
[348042156,1736273453206,-500.0,0.00010413,2]
[348042157,1736273453217,-500.0,0.00010413,2]
[348042158,1736273453225,-210.53,0.00010413,2]
[348042159,1736273453234,-500.0,0.00010413,2]
[348042160,1736273453244,-500.0,0.00010413,2]
[348042161,1736273453253,-500.0,0.00010413,2]
[348042162,1736273453263,-500.0,0.00010413,2]
[348042163,1736273453273,-1486.69,0.00010413,2]
[348042164,1736273453282,-500.0,0.00010413,2]
[348042165,1736273453293,-500.0,0.00010413,2]
[348042166,1736273453302,-500.0,0.00010413,2]
[348042167,1736273453312,-511.25,0.00010413,2]
[348042168,1736273453324,-500.0,0.00010413,2]
[348042169,1736273453333,-500.0,0.00010413,2]
[348042170,1736273453342,-500.0,0.00010413,2]
[348042171,1736273453351,-1009.73,0.00010413,2]
[348042172,1736273453361,-500.0,0.00010413,2]
[348042173,1736273453369,-500.0,0.00010413,2]
[348042174,1736273453379,-500.0,0.00010413,2]
[348042175,1736273453388,-500.0,0.00010413,2]
[348042176,1736273453399,-2488.3,0.00010413,2]
[348042177,1736273453409,-507.98,0.00010413,2]
[348042178,1736273453418,-623.74,0.00010413,2]
[348042179,1736273453427,-500.0,0.00010413,2]
[348042180,1736273453437,-500.0,0.00010413,2]
[348042181,1736273453447,-1812.89,0.00010413,2]
[348042182,1736273453457,-500.0,0.00010413,2]
[348042183,1736273453466,-500.0,0.00010413,2]
[348042184,1736273453475,-511.1,0.00010413,2]
[348042185,1736273453484,-559.08,0.00010413,2]
[348042186,1736273453493,-500.0,0.00010413,2]
[348042187,1736273453502,-500.0,0.00010413,2]
[348042188,1736273453511,-500.0,0.00010413,2]
[348042189,1736273453520,-500.0,0.00010413,2]
[348042190,1736273453529,-500.0,0.00010413,2]
[348042191,1736273453539,-500.0,0.00010413,2]
[348042192,1736273453548,-500.0,0.00010413,2]
[348042193,1736273453558,-500.0,0.00010413,2]
[348042194,1736273453568,-500.0,0.00010413,2]
[348042195,1736273453578,-500.0,0.00010413,2]
[348042196,1736273453589,-330.87667451,0.00010413,2]
[348042197,1736273453599,-970.96,0.00010413,2]
[348042198,1736273453608,-500.0,0.00010413,2]
[348042199,1736273453618,-500.0,0.00010413,2]
[348042200,1736273453627,-500.0,0.00010413,2]
[348042201,1736273453636,-1670.41,0.00010413,2]
[348042202,1736273453645,-500.0,0.00010413,2]
[348042203,1736273453655,-500.0,0.00010413,2]
[348042204,1736273453664,-500.0,0.00010413,2]
[348042205,1736273453674,-500.0,0.00010413,2]
[348042206,1736273453683,-510.97,0.00010413,2]
[348042207,1736273453693,-573.58,0.00010413,2]
[348042208,1736273453702,-500.0,0.00010413,2]
[348042209,1736273453711,-500.0,0.00010414,2]
[348042210,1736273453721,-500.0,0.00010414,2]
[348042211,1736273453731,-333.50488795,0.00010414,2]
[348042212,1736273453740,-187.77,0.00010414,2]
[348042213,1736273453749,-500.0,0.00010414,2]
[348042214,1736273453759,-568.6914188,0.00010414,2]
[348042215,1736273453768,-500.0,0.00010414,2]
[348042216,1736273453777,-500.0,0.00010414,2]
[348042217,1736273453787,-681.81,0.00010414,2]
[348042218,1736273453796,-1286.85,0.00010414,2]
[348042219,1736273453805,-1070.32,0.00010414,2]
[348042220,1736273453815,-1553.71,0.00010414,2]
[348042221,1736273453824,-227.34072829,0.0001049,2]
[348042222,1736273453833,-1000.0,0.00010547,2]
[348042223,1736273453843,-1000.0,0.0001058,2]
[348042224,1736273453852,-2866.24,0.00010587,2]
[348042225,1736273453861,-2167.62,0.00010587,2]
[348042226,1736273453870,-940.7,0.00010587,2]
[348042227,1736273453880,-1195.38,0.00010587,2]
[348042228,1736273453889,-500.0,0.00010587,2]
[348042229,1736273453898,-1064.55,0.00010587,2]
[348042230,1736273453908,-679.41,0.00010587,2]
[348042231,1736273453915,-649.3,0.00010587,2]
[348042232,1736273453924,-791.61,0.00010587,2]
[348042233,1736273453933,-1611.09,0.00010587,2]
[348042234,1736273453943,-876.57,0.00010587,2]
[348042235,1736273453952,-500.0,0.00010587,2]
[348042236,1736273453961,-1146.92,0.00010588,2]
[348042237,1736273453970,-702.63,0.00010588,2]
[348042238,1736273453980,-782.17,0.00010588,2]
[348042239,1736273453989,-500.0,0.00010588,2]
[348042240,1736273453998,-882.66,0.00010588,2]
[348042241,1736273454007,-6296.18,0.00010588,2]
[348042242,1736273454016,-1014.88,0.00010588,2]
[348042243,1736273454025,-696.06,0.00010588,2]
[348042244,1736273454034,-842.54,0.00010588,2]
[348042245,1736273454043,-936.2,0.00010588,2]
[348042246,1736273454052,-152.0,0.00010664,4]
[348042247,1736273454062,-722.03,0.00010685,2]
[348042248,1736273454071,-1360.64,0.00010685,2]
[348042249,1736273454080,-2967.63,0.00010685,2]
[348042250,1736273454090,-500.0,0.00010685,2]
[348042251,1736273454100,-667.38,0.00010685,2]
[348042252,1736273454109,-500.0,0.00010685,2]
[348042253,1736273454118,-964.24,0.00010685,2]
[348042254,1736273454127,-1673.41,0.00010685,2]
[348042255,1736273454136,-709.28,0.00010685,2]
[348042256,1736273454146,-500.0,0.00010685,2]
[348042257,1736273454155,-874.12,0.00010685,2]
[348042258,1736273454165,-858.92,0.00010685,2]
[348042259,1736273454174,-500.0,0.00010686,2]
[348042260,1736273454184,-500.0,0.00010686,2]
[348042261,1736273454194,-500.0,0.00010686,2]
[348042262,1736273454203,-500.0,0.00010686,2]
[348042263,1736273454212,-212.37851296,0.00010686,2]
[348042264,1736273454222,-500.0,0.00010686,2]
[348042265,1736273454231,-563.22,0.00010686,2]
[348042266,1736273454241,-500.0,0.00010686,2]
[348042267,1736273454250,-357.68,0.00010686,2]
[348042268,1736273454259,-500.0,0.00010686,2]
[348042269,1736273454268,-500.0,0.00010686,2]
[348042270,1736273454277,-500.0,0.00010686,2]
[348042271,1736273454286,-500.0,0.00010686,2]
[348042272,1736273454295,-500.0,0.00010686,2]
[348042273,1736273454304,-500.0,0.00010686,2]
[348042274,1736273454313,-500.0,0.00010686,2]
[348042275,1736273454322,-500.0,0.00010686,2]
[348042276,1736273454335,-408.36,0.00010686,2]
[348042277,1736273454344,-500.0,0.00010686,2]
[348042278,1736273454354,-500.0,0.00010686,2]
[348042279,1736273454363,-500.0,0.00010686,2]
[348042280,1736273454373,-2421.61,0.00010686,2]
[348042281,1736273454382,-500.0,0.00010686,2]
[348042282,1736273454392,-295.56,0.00010686,2]
[348042283,1736273454401,-1488.19,0.00010686,2]
[348042284,1736273454411,-927.8,0.00010686,2]
[348042285,1736273454421,-474.45654381,0.00010686,2]
[348042286,1736273454430,-512.66,0.00010686,2]
[348042287,1736273454441,-500.0,0.00010686,2]
[348042288,1736273454450,-500.0,0.00010686,2]
[348042289,1736273454460,-1731.79,0.00010686,2]
[348042290,1736273454469,-1587.65,0.00010686,2]
[348042291,1736273454478,-500.0,0.00010686,2]
[348042292,1736273454487,-828.69,0.00010686,2]
[348042293,1736273454496,-500.0,0.00010686,2]
[348042294,1736273454505,-500.0,0.00010686,2]
[348042295,1736273454515,-184.82105594,0.00010686,2]
[348042296,1736273454525,-1190.08,0.00010686,2]
[348042297,1736273454535,-500.0,0.00010686,2]
[348042298,1736273454545,-311.08,0.00010686,2]
[348042299,1736273454555,-500.0,0.00010686,2]
[348042300,1736273454565,-500.0,0.00010686,2]
[348042301,1736273454576,-500.0,0.00010686,2]
[348042302,1736273454585,-780.98,0.00010686,2]
[348042303,1736273454595,-500.0,0.00010686,2]
[348042304,1736273454605,-500.0,0.00010686,2]
[348042305,1736273454615,-500.0,0.00010686,2]
[348042306,1736273454624,-500.0,0.00010687,2]
[348042307,1736273454634,-852.67,0.00010687,2]
[348042308,1736273454644,-540.13,0.00010687,2]
[348042309,1736273454654,-500.0,0.00010687,2]
[348042310,1736273454663,-747.89,0.00010687,2]
[348042311,1736273454673,-1907.03,0.00010687,2]
[348042312,1736273454682,-906.47,0.00010687,2]
[348042313,1736273454693,-500.0,0.00010687,2]
[348042314,1736273454703,-267.458645,0.00010687,2]
[348042315,1736273454713,-2211.29,0.00010687,2]
[348042316,1736273454723,-334.479534,0.00010687,2]
[348042317,1736273454732,-500.0,0.00010687,2]
[348042318,1736273454742,-500.0,0.00010687,2]
[348042319,1736273454752,-500.0,0.00010687,2]
[348042320,1736273454761,-2702.59,0.00010687,2]
[348042321,1736273454771,-660.43,0.00010687,2]
[348042322,1736273454781,-500.0,0.00010687,2]
[348042323,1736273454791,-621.14274699,0.00010687,2]
[348042324,1736273454801,-500.0,0.00010687,2]
[348042325,1736273454811,-539.39,0.00010687,2]
[348042326,1736273454821,-500.0,0.00010687,2]
[348042327,1736273454830,-500.0,0.00010687,2]
[348042328,1736273454840,-500.0,0.00010687,2]
[348042329,1736273454849,-500.0,0.00010687,2]
[348042330,1736273454859,-500.0,0.00010687,2]
[348042331,1736273454869,-806.56,0.00010687,2]
[348042332,1736273454880,-521.17,0.00010687,2]
[348042333,1736273454889,-492.11578534,0.00010687,2]
[348042334,1736273454899,-500.0,0.00010687,2]
[348042335,1736273454909,-500.0,0.00010687,2]
[348042336,1736273454918,-500.0,0.00010687,2]
[348042337,1736273454928,-500.0,0.00010687,2]
[348042338,1736273454938,-500.0,0.00010687,2]
[348042339,1736273454948,-500.0,0.00010687,2]
[348042340,1736273454959,-500.0,0.00010687,2]
[348042341,1736273454969,-500.0,0.00010687,2]
[348042342,1736273454978,-500.0,0.00010687,2]
[348042343,1736273454987,-500.0,0.00010687,2]
[348042344,1736273454997,-441.78342387,0.00010687,2]
[348042345,1736273455006,-500.0,0.00010687,2]
[348042346,1736273455016,-500.0,0.00010687,2]
[348042347,1736273455024,-500.0,0.00010687,2]
[348042348,1736273455033,-500.0,0.00010687,2]
[348042349,1736273455043,-583.60180595,0.00010687,2]
[348042350,1736273455053,-500.0,0.00010687,2]
[348042351,1736273455062,-500.0,0.00010687,2]
[348042352,1736273455072,-500.0,0.00010687,2]
[348042353,1736273455082,-500.0,0.00010687,2]
[348042354,1736273455091,-500.0,0.00010687,2]
[348042355,1736273455102,-500.0,0.00010687,2]
[348042356,1736273455111,-327.5668,0.00010687,2]
[348042357,1736273455122,-500.0,0.00010687,2]
[348042358,1736273455131,-500.0,0.00010687,2]
[348042359,1736273455141,-500.0,0.00010687,2]
[348042360,1736273455151,-894.83,0.00010687,2]
[348042361,1736273455162,-535.17658351,0.00010687,2]
[348042362,1736273455171,-500.0,0.00010687,2]
[348042363,1736273455181,-500.0,0.00010687,2]
[348042364,1736273455192,-500.0,0.00010687,2]
[348042365,1736273455202,-500.0,0.00010687,2]
[348042366,1736273455212,-500.0,0.00010687,2]
[348042367,1736273455222,-958.69,0.00010687,2]
[348042368,1736273455231,-500.0,0.00010687,2]
[348042369,1736273455241,-500.0,0.00010687,2]
[348042370,1736273455250,-500.0,0.00010687,2]
[348042371,1736273455260,-452.26244111,0.00010687,2]
[348042372,1736273455270,-1016.91,0.00010687,2]
[348042373,1736273455279,-529.41,0.00010687,2]
[348042374,1736273455289,-500.0,0.00010687,2]
[348042375,1736273455298,-500.0,0.00010687,2]
[348042376,1736273455308,-599.93,0.00010687,2]
[348042377,1736273455317,-500.0,0.00010687,2]
[348042378,1736273455331,-746.53,0.00010687,2]
[348042379,1736273455341,-500.0,0.00010687,2]
[348042380,1736273455351,-500.0,0.00010687,2]
[348042381,1736273455362,-500.0,0.00010687,2]
[348042382,1736273455372,-500.0,0.00010687,2]
[348042383,1736273455382,-500.0,0.00010687,2]
[348042384,1736273455392,-500.0,0.00010687,2]
[348042385,1736273455403,-500.0,0.00010687,2]
[348042386,1736273455413,-500.0,0.00010687,2]
[348042387,1736273455423,-500.0,0.00010687,2]
[348042388,1736273455433,-500.0,0.00010687,2]
[348042389,1736273455442,-500.0,0.00010687,2]
[348042390,1736273455452,-1486.69,0.00010687,2]
[348042391,1736273455461,-500.0,0.00010687,2]
[348042392,1736273455471,-500.0,0.00010687,2]
[348042393,1736273455480,-500.0,0.00010687,2]
[348042394,1736273455490,-511.25,0.00010687,2]
[348042395,1736273455500,-500.0,0.00010687,2]
[348042396,1736273455509,-500.0,0.00010687,2]
[348042397,1736273455520,-500.0,0.00010687,2]
[348042398,1736273455530,-1009.73,0.00010687,2]
[348042399,1736273455539,-500.0,0.00010687,2]
[348042400,1736273455549,-500.0,0.00010687,2]
[348042401,1736273455559,-500.0,0.00010687,2]
[348042402,1736273455569,-500.0,0.00010687,2]
[348042403,1736273455580,-2488.3,0.00010687,2]
[348042404,1736273455590,-507.98,0.00010687,2]
[348042405,1736273455600,-411.49442953,0.00010687,2]
[348042406,1736273455610,-500.0,0.00010687,2]
[348042407,1736273455619,-1812.89,0.00010687,2]
[348042408,1736273455630,-500.0,0.00010687,2]
[348042409,1736273455639,-500.0,0.00010687,2]
[348042410,1736273455649,-511.1,0.00010687,2]
[348042411,1736273455659,-500.0,0.00010687,2]
[348042412,1736273455669,-155.64,0.00010687,2]
[348042413,1736273455679,-500.0,0.00010687,2]
[348042414,1736273455690,-500.0,0.00010687,2]
[348042415,1736273455699,-500.0,0.00010687,2]
[348042416,1736273455709,-500.0,0.00010687,2]
[348042417,1736273455718,-500.0,0.00010687,2]
[348042418,1736273455728,-500.0,0.00010687,2]
[348042419,1736273455738,-500.0,0.00010687,2]
[348042420,1736273455747,-970.96,0.00010687,2]
[348042421,1736273455757,-500.0,0.00010687,2]
[348042422,1736273455767,-470.87129107,0.00010687,2]
[348042423,1736273455776,-500.0,0.00010687,2]
[348042424,1736273455786,-1670.41,0.00010687,2]
[348042425,1736273455796,-500.0,0.00010687,2]
[348042426,1736273455806,-562.68,0.00010687,2]
[348042427,1736273455816,-500.0,0.00010687,2]
[348042428,1736273455826,-500.0,0.00010687,2]
[348042429,1736273455836,-573.58,0.00010687,2]
[348042430,1736273455846,-398.08117067,0.00010687,2]
[348042431,1736273455856,-214.68,0.00010688,2]
[348042432,1736273455865,-500.0,0.00010688,2]
[348042433,1736273455875,-500.0,0.00010688,2]
[348042434,1736273455884,-452.26851637,0.00010688,2]
[348042435,1736273455894,-500.0,0.00010688,2]
[348042436,1736273455903,-681.81,0.00010688,2]
[348042437,1736273455914,-1286.85,0.00010688,2]
[348042438,1736273455924,-1070.32,0.00010688,2]
[348042439,1736273455934,-1553.71,0.00010688,2]
[348042440,1736273455944,-446.74,0.0001083,2]
[348042441,1736273455953,-1733.0,0.00010849,2]
[348042442,1736273455963,-2866.24,0.00010861,2]
[348042443,1736273455973,-2167.62,0.00010861,2]
[348042444,1736273455982,-940.7,0.00010861,2]
[348042445,1736273455992,-1195.38,0.00010861,2]
[348042446,1736273456002,-500.0,0.00010861,2]
[348042447,1736273456013,-1064.55,0.00010861,2]
[348042448,1736273456023,-679.41,0.00010861,2]
[348042449,1736273456032,-791.61,0.00010861,2]
[348042450,1736273456043,-1611.09,0.00010861,2]
[348042451,1736273456053,-876.57,0.00010861,2]
[348042452,1736273456063,-500.0,0.00010861,2]
[348042453,1736273456071,-1146.92,0.00010862,2]
[348042454,1736273456080,-702.63,0.00010862,2]
[348042455,1736273456090,-782.17,0.00010862,2]
[348042456,1736273456099,-500.0,0.00010862,2]
[348042457,1736273456109,-882.66,0.00010862,2]
[348042458,1736273456118,-6296.18,0.00010862,2]
[348042459,1736273456128,-1014.88,0.00010862,2]
[348042460,1736273456138,-696.06,0.00010862,2]
[348042461,1736273456147,-842.54,0.00010862,2]
[348042462,1736273456157,-936.2,0.00010862,2]
[348042463,1736273456167,-152.0,0.00010939,5]
[348042464,1736273456177,-150.0,0.00010959,2]
[348042465,1736273456186,-722.03,0.00010959,2]
[348042466,1736273456198,-1360.64,0.00010959,2]
[348042467,1736273456208,-2967.63,0.00010959,2]
[348042468,1736273456218,-500.0,0.00010959,2]
[348042469,1736273456228,-667.38,0.00010959,2]
[348042470,1736273456236,-500.0,0.00010959,2]
[348042471,1736273456246,-964.24,0.00010959,2]
[348042472,1736273456255,-1673.41,0.00010959,2]
[348042473,1736273456265,-709.28,0.00010959,2]
[348042474,1736273456275,-500.0,0.00010959,2]
[348042475,1736273456285,-874.12,0.00010959,2]
[348042476,1736273456295,-858.92,0.00010959,2]
[348042477,1736273456305,-500.0,0.0001096,2]
[348042478,1736273456315,-500.0,0.0001096,2]
[348042479,1736273456327,-500.0,0.0001096,2]
[348042480,1736273456337,-547.3,0.0001096,2]
[348042481,1736273456347,-420.96,0.0001096,2]
[348042482,1736273456358,-563.22,0.0001096,2]
[348042483,1736273456371,-500.0,0.0001096,2]
[348042484,1736273456382,-500.0,0.0001096,2]
[348042485,1736273456392,-500.0,0.0001096,2]
[348042486,1736273456403,-500.0,0.0001096,2]
[348042487,1736273456414,-500.0,0.0001096,2]
[348042488,1736273456424,-500.0,0.0001096,2]
[348042489,1736273456433,-334.24,0.0001096,2]
[348042490,1736273456445,-500.0,0.0001096,2]
[348042491,1736273456454,-500.0,0.0001096,2]
[348042492,1736273456464,-500.0,0.0001096,2]
[348042493,1736273456475,-500.0,0.0001096,2]
[348042494,1736273456484,-500.0,0.0001096,2]
[348042495,1736273456494,-2421.61,0.0001096,2]
[348042496,1736273456504,-500.0,0.0001096,2]
[348042497,1736273456513,-1488.19,0.0001096,2]
[348042498,1736273456523,-927.8,0.0001096,2]
[348042499,1736273456533,-512.66,0.0001096,2]
[348042500,1736273456543,-500.0,0.0001096,2]
[348042501,1736273456554,-500.0,0.0001096,2]
[348042502,1736273456566,-1731.79,0.0001096,2]
[348042503,1736273456577,-1587.65,0.0001096,2]
[348042504,1736273456587,-500.0,0.0001096,2]
[348042505,1736273456597,-828.69,0.0001096,2]
[348042506,1736273456606,-500.0,0.0001096,2]
[348042507,1736273456616,-500.0,0.0001096,2]
[348042508,1736273456626,-1190.08,0.0001096,2]
[348042509,1736273456636,-500.0,0.0001096,2]
[348042510,1736273456646,-500.0,0.0001096,2]
[348042511,1736273456656,-500.0,0.0001096,2]
[348042512,1736273456666,-500.0,0.0001096,2]
[348042513,1736273456676,-780.98,0.0001096,2]
[348042514,1736273456686,-542.7694707,0.0001096,2]
[348042515,1736273456697,-500.0,0.0001096,2]
[348042516,1736273456707,-500.0,0.00010961,2]
[348042517,1736273456718,-852.67,0.00010961,2]
[348042518,1736273456728,-540.13,0.00010961,2]
[348042519,1736273456739,-500.0,0.00010961,2]
[348042520,1736273456749,-747.89,0.00010961,2]
[348042521,1736273456759,-1907.03,0.00010961,2]
[348042522,1736273456769,-906.47,0.00010961,2]
[348042523,1736273456779,-500.0,0.00010961,2]
[348042524,1736273456788,-267.458645,0.00010961,2]
[348042525,1736273456798,-2211.29,0.00010961,2]
[348042526,1736273456807,-334.479534,0.00010961,2]
[348042527,1736273456818,-500.0,0.00010961,2]
[348042528,1736273456828,-500.0,0.00010961,2]
[348042529,1736273456838,-500.0,0.00010961,2]
[348042530,1736273456847,-2702.59,0.00010961,2]
[348042531,1736273456858,-660.43,0.00010961,2]
[348042532,1736273456867,-500.0,0.00010961,2]
[348042533,1736273456877,-500.0,0.00010961,2]
[348042534,1736273456887,-500.0,0.00010961,2]
[348042535,1736273456898,-500.0,0.00010961,2]
[348042536,1736273456908,-500.0,0.00010961,2]
[348042537,1736273456918,-500.0,0.00010961,2]
[348042538,1736273457106,-500.0,0.00010961,2]
[348042539,1736273457116,-806.56,0.00010961,2]
[348042540,1736273457125,-521.17,0.00010961,2]
[348042541,1736273457135,-500.0,0.00010961,2]
[348042542,1736273457146,-489.12,0.00010961,2]
[348042543,1736273457156,-500.0,0.00010961,2]
[348042544,1736273457167,-500.0,0.00010961,2]
[348042545,1736273457178,-500.0,0.00010961,2]
[348042546,1736273457188,-500.0,0.00010961,2]
[348042547,1736273457203,-500.0,0.00010961,2]
[348042548,1736273457214,-500.0,0.00010961,2]
[348042549,1736273457225,-275.72,0.00010961,2]
[348042550,1736273457236,-500.0,0.00010961,2]
[348042551,1736273457247,-500.0,0.00010961,2]
[348042552,1736273457258,-500.0,0.00010961,2]
[348042553,1736273457267,-500.0,0.00010961,2]
[348042554,1736273457277,-500.0,0.00010961,2]
[348042555,1736273457287,-500.0,0.00010961,2]
[348042556,1736273457296,-500.0,0.00010961,2]
[348042557,1736273457307,-500.0,0.00010961,2]
[348042558,1736273457317,-500.0,0.00010961,2]
[348042559,1736273457329,-500.0,0.00010961,2]
[348042560,1736273457339,-500.0,0.00010961,2]
[348042561,1736273457349,-418.98,0.00010961,2]
[348042562,1736273457359,-500.0,0.00010961,2]
[348042563,1736273457370,-500.0,0.00010961,2]
[348042564,1736273457379,-894.83,0.00010961,2]
[348042565,1736273457389,-500.0,0.00010961,2]
[348042566,1736273457400,-500.0,0.00010961,2]
[348042567,1736273457410,-327.91983397,0.00010961,2]
[348042568,1736273457419,-500.0,0.00010961,2]
[348042569,1736273457429,-500.0,0.00010961,2]
[348042570,1736273457439,-958.69,0.00010961,2]
[348042571,1736273457454,-500.0,0.00010961,2]
[348042572,1736273457464,-500.0,0.00010961,2]
[348042573,1736273457474,-261.32,0.00010961,2]
[348042574,1736273457483,-1016.91,0.00010961,2]
[348042575,1736273457493,-529.41,0.00010961,2]
[348042576,1736273457503,-500.0,0.00010961,2]
[348042577,1736273457513,-500.0,0.00010961,2]